[Event "*** Titled Tuesday Blitz"]
[Site "Chess.com"]
[Date "2020.05.12"]
[Round "7"]
[White "ErikRonka"]
[Black "aquiles88"]
[Result "0-1"]
[WhiteElo "2395"]
[BlackElo "2242"]
[TimeControl "180+1"]
[EndTime "11:17:54 PDT"]
[Termination "aquiles88 won by resignation"]

1. b4 {[%clk 0:03:00.9]} 1... e5 {[%clk 0:02:58.4]} 2. Bb2 {[%clk 0:03:00.4]}
2... Bxb4 {[%clk 0:02:58.8]} 3. Bxe5 {[%clk 0:02:59.8]} 3... Nf6 {[%clk
0:02:59.4]} 4. e3 {[%clk 0:02:59.3]} 4... Nc6 {[%clk 0:02:59.4]} 5. Bb2 {[%clk
0:02:58.6]} 5... d5 {[%clk 0:02:59.3]} 6. Nf3 {[%clk 0:02:57.9]} 6... O-O {[%clk
0:02:58.6]} 7. Be2 {[%clk 0:02:57.8]} 7... Re8 {[%clk 0:02:54.1]} 8. O-O {[%clk
0:02:56.6]} 8... Bg4 {[%clk 0:02:52.2]} 9. d3 {[%clk 0:02:46]} 9... Bd6 {[%clk
0:02:40.4]} 10. Nbd2 {[%clk 0:02:44.1]} 10... Ne5 {[%clk 0:02:24.7]} 11. Nxe5
{[%clk 0:02:41.1]} 11... Bxe2 {[%clk 0:02:24.2]} 12. Qxe2 {[%clk 0:02:40.1]}
12... Bxe5 {[%clk 0:02:23.7]} 13. Bxe5 {[%clk 0:02:39.4]} 13... Rxe5 {[%clk
0:02:24.6]} 14. d4 {[%clk 0:02:37.3]} 14... Re6 {[%clk 0:02:23.1]} 15. c4 {[%clk
0:02:37.5]} 15... dxc4 {[%clk 0:02:17.7]} 16. Qxc4 {[%clk 0:02:34.1]} 16... Rc6
{[%clk 0:02:16.6]} 17. Qb3 {[%clk 0:02:26.6]} 17... Rb6 {[%clk 0:02:15.8]} 18.
Qc2 {[%clk 0:02:23]} 18... Qe7 {[%clk 0:02:12.5]} 19. Rac1 {[%clk 0:02:21]}
19... Rc6 {[%clk 0:02:10.1]} 20. Qb3 {[%clk 0:02:18.6]} 20... Rxc1 {[%clk
0:02:09.3]} 21. Rxc1 {[%clk 0:02:17.7]} 21... c6 {[%clk 0:02:09.4]} 22. Rb1
{[%clk 0:02:15.7]} 22... Rb8 {[%clk 0:01:53.7]} 23. Nc4 {[%clk 0:02:12.5]} 23...
Nd5 {[%clk 0:01:52.4]} 24. Ne5 {[%clk 0:02:10.2]} 24... Nb6 {[%clk 0:01:46.9]}
25. a4 {[%clk 0:02:08.8]} 25... Qc7 {[%clk 0:01:34.2]} 26. a5 {[%clk 0:01:49.9]}
26... Nd5 {[%clk 0:01:32.7]} 27. Nc4 {[%clk 0:01:38.7]} 27... h6 {[%clk
0:01:21]} 28. h3 {[%clk 0:01:36.9]} 28... Nf6 {[%clk 0:01:17.2]} 29. Qa3 {[%clk
0:01:32.8]} 29... Rd8 {[%clk 0:01:13.9]} 30. Qb4 {[%clk 0:01:30.4]} 30... Rd7
{[%clk 0:01:13.1]} 31. Ne5 {[%clk 0:01:24.2]} 31... Re7 {[%clk 0:01:12.7]} 32.
Qc5 {[%clk 0:01:13.1]} 32... a6 {[%clk 0:01:03.3]} 33. Nc4 {[%clk 0:00:57]}
33... Ne4 {[%clk 0:01:03]} 34. Qa3 {[%clk 0:00:38.8]} 34... Rd7 {[%clk
0:01:01.4]} 35. Ne5 {[%clk 0:00:36.3]} 35... Re7 {[%clk 0:01:00.9]} 36. f3
{[%clk 0:00:36]} 36... Nf6 {[%clk 0:00:59]} 37. Nc4 {[%clk 0:00:34.4]} 37... Rd7
{[%clk 0:00:55.4]} 38. Qc5 {[%clk 0:00:33.7]} 38... Rd5 {[%clk 0:00:49.7]} 39.
Qa7 {[%clk 0:00:31.2]} 39... Rb5 {[%clk 0:00:42.9]} 40. Rc1 {[%clk 0:00:25]}
40... Qe7 {[%clk 0:00:36.6]} 41. Qa8+ {[%clk 0:00:23.8]} 41... Kh7 {[%clk
0:00:35.9]} 42. Qb8 {[%clk 0:00:22.6]} 42... Nd5 {[%clk 0:00:35.1]} 43. e4
{[%clk 0:00:15]} 43... Nf6 {[%clk 0:00:29.9]} 44. Qd6 {[%clk 0:00:13.9]} 44...
Qe8 {[%clk 0:00:23.9]} 45. Qf4 {[%clk 0:00:12.1]} 45... Qd7 {[%clk 0:00:17.9]}
46. Ne5 {[%clk 0:00:11.1]} 46... Qxd4+ {[%clk 0:00:16.5]} 47. Kh2 {[%clk
0:00:09.4]} 47... Qxe5 {[%clk 0:00:17]} 48. Qxe5 {[%clk 0:00:07.4]} 48... Rxe5
{[%clk 0:00:17.9]} 49. Kg3 {[%clk 0:00:08]} 49... Rxa5 {[%clk 0:00:18]} 50. Rb1
{[%clk 0:00:07]} 50... Rb5 {[%clk 0:00:18.4]} 51. Rc1 {[%clk 0:00:06.8]} 51...
a5 {[%clk 0:00:18.6]} 52. Kf4 {[%clk 0:00:07.3]} 52... a4 {[%clk 0:00:17.9]} 53.
g4 {[%clk 0:00:07.5]} 53... a3 {[%clk 0:00:17.7]} 54. h4 {[%clk 0:00:06.5]}
54... a2 {[%clk 0:00:17.8]} 55. Ra1 {[%clk 0:00:07]} 55... Ra5 {[%clk
0:00:18.2]} 56. g5 {[%clk 0:00:06.5]} 56... hxg5+ {[%clk 0:00:16.4]} 57. hxg5
{[%clk 0:00:07.4]} 57... Nd7 {[%clk 0:00:16.8]} 58. Kg4 {[%clk 0:00:07.3]} 58...
b5 {[%clk 0:00:15.9]} 59. f4 {[%clk 0:00:07.6]} 59... b4 {[%clk 0:00:16]} 0-1

[Event "*** Titled Tuesday Blitz"]
[Site "Chess.com"]
[Date "2020.05.12"]
[Round "7"]
[White "Kirill_Klukin"]
[Black "FedaMaster"]
[Result "0-1"]
[WhiteElo "2687"]
[BlackElo "2552"]
[TimeControl "180+1"]
[EndTime "11:17:55 PDT"]
[Termination "FedaMaster won by resignation"]

1. d4 {[%clk 0:03:00.9]} 1... Nf6 {[%clk 0:02:58.9]} 2. Nf3 {[%clk 0:03:01.6]}
2... g6 {[%clk 0:02:58.9]} 3. e3 {[%clk 0:03:01.8]} 3... Bg7 {[%clk 0:02:59.2]}
4. Be2 {[%clk 0:03:02.7]} 4... O-O {[%clk 0:02:59.5]} 5. O-O {[%clk 0:03:03.6]}
5... d6 {[%clk 0:02:59.4]} 6. c4 {[%clk 0:03:03.7]} 6... c5 {[%clk 0:02:59.3]}
7. b3 {[%clk 0:03:03.5]} 7... cxd4 {[%clk 0:02:58.1]} 8. Nxd4 {[%clk 0:03:04.4]}
8... Nc6 {[%clk 0:02:58]} 9. Bb2 {[%clk 0:03:05]} 9... Bd7 {[%clk 0:02:58.2]}
10. Nc3 {[%clk 0:03:04.5]} 10... Qa5 {[%clk 0:02:58.1]} 11. Nc2 {[%clk
0:03:02.5]} 11... Rfc8 {[%clk 0:02:51.9]} 12. Rb1 {[%clk 0:03:01.2]} 12... Nb4
{[%clk 0:02:39.2]} 13. Nxb4 {[%clk 0:02:51.2]} 13... Qxb4 {[%clk 0:02:40.1]} 14.
a3 {[%clk 0:02:51.6]} 14... Qa5 {[%clk 0:02:37.9]} 15. b4 {[%clk 0:02:51.8]}
15... Qd8 {[%clk 0:02:30.5]} 16. Rc1 {[%clk 0:02:50.8]} 16... Rab8 {[%clk
0:02:23.3]} 17. Qd2 {[%clk 0:02:46.4]} 17... a6 {[%clk 0:02:08.3]} 18. Rfd1
{[%clk 0:02:46.3]} 18... Qe8 {[%clk 0:02:02.9]} 19. h3 {[%clk 0:02:41.2]} 19...
Be6 {[%clk 0:01:29.7]} 20. Nd5 {[%clk 0:02:29]} 20... Bxd5 {[%clk 0:01:29.8]}
21. cxd5 {[%clk 0:02:27.4]} 21... Ne4 {[%clk 0:01:29.9]} 22. Qd3 {[%clk
0:02:06.4]} 22... Nxf2 {[%clk 0:01:04.9]} 23. Kxf2 {[%clk 0:02:03]} 23... Bxb2
{[%clk 0:01:04.1]} 24. Rc2 {[%clk 0:02:03.3]} 24... Rxc2 {[%clk 0:00:59.9]} 25.
Qxc2 {[%clk 0:02:04.2]} 25... Bf6 {[%clk 0:00:55.7]} 26. Rc1 {[%clk 0:02:04.2]}
26... Qf8 {[%clk 0:00:54.5]} 27. Qc7 {[%clk 0:02:00.4]} 27... b5 {[%clk
0:00:48.3]} 28. Rc6 {[%clk 0:01:58.4]} 28... h5 {[%clk 0:00:47.6]} 29. Rxa6
{[%clk 0:01:55.6]} 29... Rc8 {[%clk 0:00:47.8]} 30. Qb7 {[%clk 0:01:53.9]} 30...
Kh7 {[%clk 0:00:44.1]} 31. Rc6 {[%clk 0:01:50.3]} 31... Rb8 {[%clk 0:00:44.2]}
32. Qd7 {[%clk 0:01:50.1]} 32... Ra8 {[%clk 0:00:42]} 33. Rc2 {[%clk 0:00:51.9]}
33... Qg7 {[%clk 0:00:34.4]} 34. Qxb5 {[%clk 0:00:49.9]} 34... Bh4+ {[%clk
0:00:30.1]} 35. g3 {[%clk 0:00:49]} 35... Qf6+ {[%clk 0:00:29.8]} 36. Bf3 {[%clk
0:00:49.4]} 36... Bg5 {[%clk 0:00:23.9]} 37. a4 {[%clk 0:00:49.2]} 37... h4
{[%clk 0:00:24.1]} 38. gxh4 {[%clk 0:00:43.5]} 38... Bxh4+ {[%clk 0:00:25]} 39.
Ke2 {[%clk 0:00:43.6]} 39... Qe5 {[%clk 0:00:25.4]} 40. Qc4 {[%clk 0:00:40.3]}
40... Bg5 {[%clk 0:00:18.6]} 41. Qe4 {[%clk 0:00:33.8]} 41... Qh2+ {[%clk
0:00:15.8]} 42. Kd3 {[%clk 0:00:33.5]} 42... Qxh3 {[%clk 0:00:16.3]} 43. a5
{[%clk 0:00:32.2]} 43... Rb8 {[%clk 0:00:14.7]} 44. a6 {[%clk 0:00:30.7]} 44...
Qd7 {[%clk 0:00:13.9]} 45. Qc4 {[%clk 0:00:29.4]} 45... Qa4 {[%clk 0:00:13.4]}
46. Ra2 {[%clk 0:00:28.9]} 46... Qd7 {[%clk 0:00:12.4]} 47. Be4 {[%clk
0:00:23.2]} 47... Qh3 {[%clk 0:00:11.8]} 48. Qc2 {[%clk 0:00:17.9]} 48... Qxe3+
{[%clk 0:00:10.8]} 49. Kc4 {[%clk 0:00:15]} 49... Rc8+ {[%clk 0:00:11.3]} 50.
Kb5 {[%clk 0:00:15.6]} 50... Rxc2 {[%clk 0:00:11.2]} 51. Bxc2 {[%clk 0:00:16.5]}
51... Qe2+ {[%clk 0:00:10.8]} 52. Kb6 {[%clk 0:00:16]} 52... Be3+ {[%clk
0:00:10.9]} 53. Kc7 {[%clk 0:00:15.7]} 53... Qb5 {[%clk 0:00:11.1]} 54. a7
{[%clk 0:00:11.8]} 54... Qc4+ {[%clk 0:00:11.2]} 55. Kb7 {[%clk 0:00:11.1]}
55... Qb5+ {[%clk 0:00:11.2]} 56. Kc8 {[%clk 0:00:11.2]} 56... Bxa7 {[%clk
0:00:11.1]} 57. Rxa7 {[%clk 0:00:10.8]} 57... Qxd5 {[%clk 0:00:11.6]} 58. Rc7
{[%clk 0:00:11.5]} 58... Qe6+ {[%clk 0:00:11.7]} 59. Kb7 {[%clk 0:00:11.1]}
59... Qd5+ {[%clk 0:00:11.2]} 60. Kb6 {[%clk 0:00:11.1]} 60... Qd4+ {[%clk
0:00:11.4]} 61. Kb5 {[%clk 0:00:11.7]} 61... Qf2 {[%clk 0:00:11.2]} 62. Bb3
{[%clk 0:00:11.5]} 62... Qe2+ {[%clk 0:00:11.1]} 63. Bc4 {[%clk 0:00:11.6]}
63... Qe3 {[%clk 0:00:12]} 64. Bxf7 {[%clk 0:00:11.6]} 64... Qf4 {[%clk
0:00:11.6]} 65. Bc4 {[%clk 0:00:11.7]} 65... Qe5+ {[%clk 0:00:11.7]} 66. Kb6
{[%clk 0:00:12.2]} 66... d5 {[%clk 0:00:12.2]} 67. Bd3 {[%clk 0:00:09.9]} 67...
Qd4+ {[%clk 0:00:12.2]} 68. Kb7 {[%clk 0:00:08.8]} 68... Qxd3 {[%clk 0:00:12.3]}
69. Rxe7+ {[%clk 0:00:09.7]} 69... Kh6 {[%clk 0:00:12.7]} 70. Kc6 {[%clk
0:00:10.6]} 70... Qc4+ {[%clk 0:00:12.7]} 71. Kd6 {[%clk 0:00:11.1]} 71... Qxb4+
{[%clk 0:00:13]} 0-1

[Event "*** Titled Tuesday Blitz"]
[Site "Chess.com"]
[Date "2020.05.12"]
[Round "7"]
[White "plumalka"]
[Black "attack2mateU"]
[Result "0-1"]
[WhiteElo "2455"]
[BlackElo "2630"]
[TimeControl "180+1"]
[EndTime "11:17:57 PDT"]
[Termination "attack2mateU won by resignation"]

1. e4 {[%clk 0:03:00.9]} 1... c5 {[%clk 0:02:58.9]} 2. Nf3 {[%clk 0:03:00.8]}
2... d6 {[%clk 0:02:58.6]} 3. d4 {[%clk 0:03:01.2]} 3... cxd4 {[%clk 0:02:59.1]}
4. Qxd4 {[%clk 0:02:57.4]} 4... Nc6 {[%clk 0:02:58.2]} 5. Bb5 {[%clk 0:02:57.2]}
5... Bd7 {[%clk 0:02:58.5]} 6. Bxc6 {[%clk 0:02:57.7]} 6... Bxc6 {[%clk
0:02:59.4]} 7. Nc3 {[%clk 0:02:58]} 7... Nf6 {[%clk 0:02:57.2]} 8. Bg5 {[%clk
0:02:58.6]} 8... Nd7 {[%clk 0:02:56.6]} 9. O-O-O {[%clk 0:02:53.7]} 9... Qc8
{[%clk 0:02:55.7]} 10. Kb1 {[%clk 0:02:47.8]} 10... b5 {[%clk 0:02:54.4]} 11.
Rhe1 {[%clk 0:02:45]} 11... f6 {[%clk 0:02:51]} 12. Bh4 {[%clk 0:02:40.2]} 12...
e5 {[%clk 0:02:49.1]} 13. Qd2 {[%clk 0:02:34.1]} 13... Nb6 {[%clk 0:02:45.2]}
14. Qd3 {[%clk 0:02:16.5]} 14... a6 {[%clk 0:01:58.4]} 15. Nd2 {[%clk
0:02:14.4]} 15... b4 {[%clk 0:01:55.8]} 16. Nd5 {[%clk 0:02:11.1]} 16... Nxd5
{[%clk 0:01:53.7]} 17. exd5 {[%clk 0:02:12]} 17... Bb5 {[%clk 0:01:44.1]} 18.
Qg3 {[%clk 0:02:11.7]} 18... Kf7 {[%clk 0:01:14.8]} 19. f4 {[%clk 0:02:10.3]}
19... Qf5 {[%clk 0:00:47.7]} 20. fxe5 {[%clk 0:01:58.6]} 20... dxe5 {[%clk
0:00:48.6]} 21. d6 {[%clk 0:01:46.7]} 21... g5 {[%clk 0:00:38.4]} 22. Qb3+
{[%clk 0:01:42.9]} 22... Qe6 {[%clk 0:00:35.8]} 23. Qf3 {[%clk 0:01:41.5]} 23...
Bh6 {[%clk 0:00:32.1]} 24. Bg3 {[%clk 0:01:30]} 24... g4 {[%clk 0:00:27.3]} 25.
Qb7+ {[%clk 0:01:25.6]} 25... Kg6 {[%clk 0:00:18]} 26. Qe4+ {[%clk 0:01:03.7]}
26... Qf5 {[%clk 0:00:16.5]} 27. Qxb4 {[%clk 0:01:01.8]} 27... Bxd2 {[%clk
0:00:13.6]} 28. Qxd2 {[%clk 0:00:59.9]} 28... Bd7 {[%clk 0:00:12.3]} 29. Rf1
{[%clk 0:00:59.1]} 29... Qe6 {[%clk 0:00:11.8]} 30. Qd3+ {[%clk 0:00:59.5]}
30... Kg7 {[%clk 0:00:10.8]} 31. h3 {[%clk 0:00:54.8]} 31... Bb5 {[%clk
0:00:10.6]} 32. Qe4 {[%clk 0:00:48]} 32... Bxf1 {[%clk 0:00:10.8]} 33. Rxf1
{[%clk 0:00:47]} 33... Rad8 {[%clk 0:00:08.1]} 34. Bh4 {[%clk 0:00:44.8]} 34...
Rhf8 {[%clk 0:00:07.2]} 35. hxg4 {[%clk 0:00:44.3]} 35... Rxd6 {[%clk
0:00:07.6]} 36. Rh1 {[%clk 0:00:39.5]} 36... Kg8 {[%clk 0:00:05.1]} 37. Bf2
{[%clk 0:00:30.9]} 37... Qd7 {[%clk 0:00:05.1]} 38. Kc1 {[%clk 0:00:25.1]} 38...
Rd8 {[%clk 0:00:04.5]} 39. b3 {[%clk 0:00:21.1]} 39... Rd1+ {[%clk 0:00:04.5]}
40. Rxd1 {[%clk 0:00:21.4]} 40... Qxd1+ {[%clk 0:00:05.1]} 41. Kb2 {[%clk
0:00:22.2]} 41... Qd5 {[%clk 0:00:05.5]} 42. Qf5 {[%clk 0:00:21.6]} 42... Kg7
{[%clk 0:00:04.4]} 43. g5 {[%clk 0:00:21.6]} 43... fxg5 {[%clk 0:00:04]} 44.
Qxg5+ {[%clk 0:00:22.3]} 44... Kf7 {[%clk 0:00:04.3]} 45. Bh4 {[%clk 0:00:21.9]}
45... Qd4+ {[%clk 0:00:03.9]} 46. Ka3 {[%clk 0:00:21.1]} 46... Qc5+ {[%clk
0:00:03.9]} 47. Kb2 {[%clk 0:00:21.4]} 47... Qd4+ {[%clk 0:00:04.1]} 48. Ka3
{[%clk 0:00:20.5]} 48... Qd6+ {[%clk 0:00:03.2]} 49. Kb2 {[%clk 0:00:20.4]}
49... Rd7 {[%clk 0:00:02.5]} 50. Qf5+ {[%clk 0:00:19.4]} 50... Kg7 {[%clk
0:00:03.2]} 51. Bf6+ {[%clk 0:00:17.4]} 51... Kg8 {[%clk 0:00:02.2]} 52. Qg5+
{[%clk 0:00:16.9]} 52... Kf7 {[%clk 0:00:02.8]} 53. Qg7+ {[%clk 0:00:17.2]}
53... Ke6 {[%clk 0:00:03.5]} 54. Qg5 {[%clk 0:00:14.3]} 54... Qd4+ {[%clk
0:00:03.6]} 55. Ka3 {[%clk 0:00:14.5]} 55... Qc5+ {[%clk 0:00:04.1]} 56. Kb2
{[%clk 0:00:14.9]} 56... Rc7 {[%clk 0:00:04.6]} 57. Qg4+ {[%clk 0:00:14.8]}
57... Kxf6 {[%clk 0:00:04.9]} 58. Qf3+ {[%clk 0:00:15]} 58... Ke6 {[%clk
0:00:05.8]} 59. Qg4+ {[%clk 0:00:15.3]} 59... Kd5 {[%clk 0:00:06.2]} 60. Qf3+
{[%clk 0:00:15.5]} 60... Kd6 {[%clk 0:00:06.5]} 61. Qf6+ {[%clk 0:00:15.6]}
61... Kd7 {[%clk 0:00:07.1]} 62. Qf7+ {[%clk 0:00:15.6]} 62... Kc8 {[%clk
0:00:07.7]} 63. Qf5+ {[%clk 0:00:13.5]} 63... Kb7 {[%clk 0:00:08]} 64. Qf3+
{[%clk 0:00:13.7]} 64... Ka7 {[%clk 0:00:08.7]} 65. c4 {[%clk 0:00:13.5]} 65...
Qd4+ {[%clk 0:00:08.4]} 66. Ka3 {[%clk 0:00:13.5]} 66... e4 {[%clk 0:00:08.9]}
67. Qf4 {[%clk 0:00:11.3]} 67... Qc5+ {[%clk 0:00:08.1]} 68. Kb2 {[%clk
0:00:10.4]} 68... Re7 {[%clk 0:00:07.8]} 69. a3 {[%clk 0:00:08.6]} 69... e3
{[%clk 0:00:07.8]} 70. b4 {[%clk 0:00:08.6]} 70... Qe5+ {[%clk 0:00:08.2]} 71.
Qxe5 {[%clk 0:00:09]} 71... Rxe5 {[%clk 0:00:09]} 0-1

[Event "*** Titled Tuesday Blitz"]
[Site "Chess.com"]
[Date "2020.05.12"]
[Round "7"]
[White "kinga2008"]
[Black "noblerone"]
[Result "0-1"]
[WhiteElo "2219"]
[BlackElo "2421"]
[TimeControl "180+1"]
[EndTime "11:18:01 PDT"]
[Termination "noblerone won by checkmate"]

1. e4 {[%clk 0:03:00.9]} 1... c5 {[%clk 0:02:59.7]} 2. Nf3 {[%clk 0:02:59.2]}
2... e6 {[%clk 0:02:59.9]} 3. c3 {[%clk 0:02:58.7]} 3... d5 {[%clk 0:02:58.1]}
4. Bd3 {[%clk 0:02:57.6]} 4... dxe4 {[%clk 0:02:56]} 5. Bxe4 {[%clk 0:02:55.3]}
5... Nf6 {[%clk 0:02:56.5]} 6. Bc2 {[%clk 0:02:54]} 6... Nc6 {[%clk 0:02:56.3]}
7. d4 {[%clk 0:02:52.8]} 7... cxd4 {[%clk 0:02:53.7]} 8. cxd4 {[%clk 0:02:50]}
8... Be7 {[%clk 0:02:49.6]} 9. Nc3 {[%clk 0:02:48.1]} 9... O-O {[%clk
0:02:49.5]} 10. Bg5 {[%clk 0:02:42.8]} 10... Nb4 {[%clk 0:02:47.3]} 11. Bb1
{[%clk 0:02:39.4]} 11... b6 {[%clk 0:02:45.3]} 12. h4 {[%clk 0:02:34.7]} 12...
Ba6 {[%clk 0:02:31]} 13. Bxf6 {[%clk 0:02:29.8]} 13... Bxf6 {[%clk 0:02:12.8]}
14. a3 {[%clk 0:02:24.5]} 14... Nd5 {[%clk 0:01:59.1]} 15. Ng5 {[%clk
0:01:59.8]} 15... h6 {[%clk 0:01:44.7]} 16. Nh7 {[%clk 0:01:52.1]} 16... Re8
{[%clk 0:01:37.8]} 17. Qg4 {[%clk 0:01:37.3]} 17... Rc8 {[%clk 0:01:11.2]} 18.
Qe4 {[%clk 0:01:28.2]} 18... Nxc3 {[%clk 0:00:46.4]} 19. bxc3 {[%clk 0:01:25.1]}
19... Rxc3 {[%clk 0:00:38.4]} 20. Nxf6+ {[%clk 0:01:13.7]} 20... Qxf6 {[%clk
0:00:39.3]} 21. Kd2 {[%clk 0:00:55]} 21... Rec8 {[%clk 0:00:35.9]} 22. f3 {[%clk
0:00:28.3]} 22... R3c4 {[%clk 0:00:26.8]} 23. Ke3 {[%clk 0:00:25.6]} 23... Rc3+
{[%clk 0:00:21.8]} 24. Kf2 {[%clk 0:00:24.5]} 24... Kf8 {[%clk 0:00:11.3]} 25.
Kg3 {[%clk 0:00:19.7]} 25... R3c4 {[%clk 0:00:08.1]} 26. Rd1 {[%clk 0:00:15.2]}
26... R4c7 {[%clk 0:00:08.5]} 27. Ba2 {[%clk 0:00:13.5]} 27... Bb7 {[%clk
0:00:08]} 28. Qe5 {[%clk 0:00:12.5]} 28... Qxe5+ {[%clk 0:00:07.8]} 29. dxe5
{[%clk 0:00:13.4]} 29... Ke7 {[%clk 0:00:08.1]} 30. Rd2 {[%clk 0:00:11.4]} 30...
Rc2 {[%clk 0:00:07.6]} 31. Rad1 {[%clk 0:00:12]} 31... Rxd2 {[%clk 0:00:06.5]}
32. Rxd2 {[%clk 0:00:12.9]} 32... Rc7 {[%clk 0:00:07]} 33. Kf4 {[%clk
0:00:12.3]} 33... b5 {[%clk 0:00:07.2]} 34. Rb2 {[%clk 0:00:07.8]} 34... a6
{[%clk 0:00:07.5]} 35. Bb3 {[%clk 0:00:06.4]} 35... Bc6 {[%clk 0:00:06.5]} 36.
Ra2 {[%clk 0:00:04.5]} 36... Bd7 {[%clk 0:00:04.8]} 37. g4 {[%clk 0:00:01.8]}
37... Rc3 {[%clk 0:00:04.9]} 38. Bd1 {[%clk 0:00:01.9]} 38... Rc4+ {[%clk
0:00:04.7]} 39. Kg3 {[%clk 0:00:01.7]} 39... a5 {[%clk 0:00:05.1]} 40. Be2
{[%clk 0:00:02.3]} 40... Rc5 {[%clk 0:00:04.9]} 41. Rb2 {[%clk 0:00:02.8]} 41...
Rxe5 {[%clk 0:00:04.7]} 42. Kf4 {[%clk 0:00:03.1]} 42... Rc5 {[%clk 0:00:05.1]}
43. Ke4 {[%clk 0:00:03.7]} 43... f6 {[%clk 0:00:05.5]} 44. Kd4 {[%clk
0:00:04.2]} 44... Kd6 {[%clk 0:00:05.5]} 45. Ke4 {[%clk 0:00:04.8]} 45... e5
{[%clk 0:00:05.6]} 46. Rd2+ {[%clk 0:00:05.1]} 46... Ke7 {[%clk 0:00:05]} 47.
Rb2 {[%clk 0:00:04.1]} 47... Bc6+ {[%clk 0:00:04.7]} 48. Ke3 {[%clk 0:00:04.5]}
48... Rc3+ {[%clk 0:00:04.5]} 49. Kf2 {[%clk 0:00:05.1]} 49... Rxa3 {[%clk
0:00:04.9]} 50. Bxb5 {[%clk 0:00:05.5]} 50... Bxb5 {[%clk 0:00:05.8]} 51. Rxb5
{[%clk 0:00:05.6]} 51... a4 {[%clk 0:00:06.7]} 52. Rb7+ {[%clk 0:00:05.2]} 52...
Kf8 {[%clk 0:00:07]} 53. Ra7 {[%clk 0:00:04.4]} 53... Ra2+ {[%clk 0:00:06]} 54.
Ke3 {[%clk 0:00:04.8]} 54... Kg8 {[%clk 0:00:06.5]} 55. Ke4 {[%clk 0:00:05.1]}
55... Kh7 {[%clk 0:00:06]} 56. Kf5 {[%clk 0:00:03.4]} 56... a3 {[%clk
0:00:05.9]} 57. g5 {[%clk 0:00:02.9]} 57... hxg5 {[%clk 0:00:05.5]} 58. hxg5
{[%clk 0:00:03.8]} 58... fxg5 {[%clk 0:00:04.5]} 59. Kxe5 {[%clk 0:00:04.2]}
59... Ra1 {[%clk 0:00:04.6]} 60. Kf5 {[%clk 0:00:03.1]} 60... a2 {[%clk
0:00:04.9]} 61. Ra3 {[%clk 0:00:01.8]} 61... g4 {[%clk 0:00:03.3]} 62. Kf4
{[%clk 0:00:01.2]} 62... gxf3 {[%clk 0:00:02.9]} 63. Rxf3 {[%clk 0:00:01.8]}
63... Rh1 {[%clk 0:00:02.2]} 64. Rb3 {[%clk 0:00:01.1]} 64... a1=Q {[%clk
0:00:03.1]} 65. Rb7 {[%clk 0:00:01.1]} 65... Rh4+ {[%clk 0:00:03.6]} 66. Kg5
{[%clk 0:00:01.1]} 66... Qf6# {[%clk 0:00:04.5]} 0-1

[Event "*** Titled Tuesday Blitz"]
[Site "Chess.com"]
[Date "2020.05.12"]
[Round "7"]
[White "NemtsevIgor"]
[Black "AwareIdea"]
[Result "1-0"]
[WhiteElo "2296"]
[BlackElo "2512"]
[TimeControl "180+1"]
[EndTime "11:18:02 PDT"]
[Termination "NemtsevIgor won by resignation"]

1. d4 {[%clk 0:03:00.9]} 1... d5 {[%clk 0:02:59.7]} 2. Bf4 {[%clk 0:02:59.9]}
2... Nf6 {[%clk 0:02:59.1]} 3. e3 {[%clk 0:03:00.3]} 3... c5 {[%clk 0:02:59]} 4.
c3 {[%clk 0:03:00.2]} 4... Nc6 {[%clk 0:02:55.6]} 5. Nd2 {[%clk 0:02:59.9]} 5...
Qb6 {[%clk 0:02:55]} 6. Qb3 {[%clk 0:02:56.4]} 6... g6 {[%clk 0:02:49.6]} 7.
Ngf3 {[%clk 0:02:47.1]} 7... Bg7 {[%clk 0:02:49.1]} 8. Be2 {[%clk 0:02:43.5]}
8... O-O {[%clk 0:02:48.3]} 9. Qxb6 {[%clk 0:02:37.1]} 9... axb6 {[%clk
0:02:48.2]} 10. O-O {[%clk 0:02:36.9]} 10... c4 {[%clk 0:02:41.8]} 11. h3 {[%clk
0:02:32.8]} 11... b5 {[%clk 0:02:41.9]} 12. a3 {[%clk 0:02:28]} 12... Nd7 {[%clk
0:02:41.5]} 13. e4 {[%clk 0:02:26.4]} 13... Nb6 {[%clk 0:02:38]} 14. Bc7 {[%clk
0:02:13.3]} 14... dxe4 {[%clk 0:02:31.4]} 15. Bxb6 {[%clk 0:02:10]} 15... exf3
{[%clk 0:02:29.8]} 16. Bxf3 {[%clk 0:02:04.8]} 16... Bf5 {[%clk 0:02:23.7]} 17.
Rfe1 {[%clk 0:02:00.3]} 17... e6 {[%clk 0:02:06.4]} 18. Ne4 {[%clk 0:01:59.3]}
18... Bxe4 {[%clk 0:02:05.2]} 19. Bxe4 {[%clk 0:01:59.1]} 19... Ra6 {[%clk
0:02:05]} 20. Bc5 {[%clk 0:01:58.5]} 20... Rd8 {[%clk 0:02:03.9]} 21. Rad1
{[%clk 0:01:47.2]} 21... b6 {[%clk 0:01:37.9]} 22. Bb4 {[%clk 0:01:08.9]} 22...
Nxb4 {[%clk 0:01:36.4]} 23. axb4 {[%clk 0:01:09.2]} 23... Ra2 {[%clk 0:01:17.1]}
24. Re2 {[%clk 0:01:07.4]} 24... e5 {[%clk 0:01:09.2]} 25. d5 {[%clk 0:01:07.2]}
25... f5 {[%clk 0:01:09.1]} 26. Bb1 {[%clk 0:01:00.4]} 26... Ra1 {[%clk
0:00:54.8]} 27. f3 {[%clk 0:00:53.6]} 27... Rd6 {[%clk 0:00:48]} 28. Kf2 {[%clk
0:00:50.5]} 28... Kf8 {[%clk 0:00:47]} 29. Ree1 {[%clk 0:00:40.6]} 29... Ke7
{[%clk 0:00:38.9]} 30. g4 {[%clk 0:00:34.1]} 30... Kf6 {[%clk 0:00:34.5]} 31. h4
{[%clk 0:00:33.6]} 31... h6 {[%clk 0:00:30.4]} 32. h5 {[%clk 0:00:33]} 32...
gxh5 {[%clk 0:00:20.5]} 33. gxf5 {[%clk 0:00:33.2]} 33... Kf7 {[%clk 0:00:07.5]}
34. Rg1 {[%clk 0:00:33.3]} 34... Bf6 {[%clk 0:00:07.3]} 35. Ke3 {[%clk
0:00:32.7]} 35... Bg5+ {[%clk 0:00:06.8]} 36. Ke4 {[%clk 0:00:32.3]} 36... Kf6
{[%clk 0:00:07]} 37. Rh1 {[%clk 0:00:25.2]} 37... h4 {[%clk 0:00:06.9]} 38. Rhg1
{[%clk 0:00:25]} 38... Ra7 {[%clk 0:00:04.5]} 39. Bc2 {[%clk 0:00:23.6]} 39...
Rad7 {[%clk 0:00:04]} 40. Rg2 {[%clk 0:00:20.5]} 40... Rd8 {[%clk 0:00:03.1]}
41. Rh2 {[%clk 0:00:17.7]} 41... Ra8 {[%clk 0:00:02.3]} 42. Rdh1 {[%clk
0:00:17.5]} 42... Ra2 {[%clk 0:00:02]} 43. Bb1 {[%clk 0:00:16.4]} 43... Ra1
{[%clk 0:00:02.4]} 44. Bc2 {[%clk 0:00:15.9]} 44... Ra2 {[%clk 0:00:02]} 45. Bb1
{[%clk 0:00:16.1]} 45... Ra4 {[%clk 0:00:01.4]} 46. Rxh4 {[%clk 0:00:15.1]}
46... Bxh4 {[%clk 0:00:02.3]} 47. Rxh4 {[%clk 0:00:15.3]} 47... Kg7 {[%clk
0:00:03]} 48. Rg4+ {[%clk 0:00:13.4]} 48... Kf8 {[%clk 0:00:03.3]} 49. Rg6
{[%clk 0:00:13]} 49... Rd8 {[%clk 0:00:04.2]} 50. Kxe5 {[%clk 0:00:12.6]} 50...
Ra1 {[%clk 0:00:05]} 51. Be4 {[%clk 0:00:11.6]} 51... Re8+ {[%clk 0:00:05.9]}
52. Kf4 {[%clk 0:00:11.6]} 52... Ra2 {[%clk 0:00:06.4]} 53. Rxb6 {[%clk
0:00:11.5]} 53... Rxb2 {[%clk 0:00:06.8]} 54. Rxb5 {[%clk 0:00:12.4]} 54... Rb3
{[%clk 0:00:06.9]} 55. Rb7 {[%clk 0:00:12.2]} 55... Rxc3 {[%clk 0:00:06.8]} 56.
f6 {[%clk 0:00:12.6]} 56... Rc1 {[%clk 0:00:06.2]} 57. Kf5 {[%clk 0:00:13.1]}
57... Rf1 {[%clk 0:00:05.3]} 58. Kg6 {[%clk 0:00:12.8]} 58... Rxe4 {[%clk
0:00:05.2]} 59. fxe4 {[%clk 0:00:11.6]} 59... Ke8 {[%clk 0:00:05]} 60. Rb8+
{[%clk 0:00:10.9]} 60... Kd7 {[%clk 0:00:04.8]} 61. f7 {[%clk 0:00:11.4]} 61...
c3 {[%clk 0:00:04.7]} 62. f8=Q {[%clk 0:00:11.6]} 62... Rxf8 {[%clk 0:00:04.4]}
63. Rxf8 {[%clk 0:00:11.8]} 63... c2 {[%clk 0:00:05.3]} 64. Rf1 {[%clk
0:00:11.9]} 64... Kd6 {[%clk 0:00:05.4]} 65. Rc1 {[%clk 0:00:12.1]} 65... Ke5
{[%clk 0:00:06.3]} 66. Rxc2 {[%clk 0:00:12.5]} 1-0